[Event "71st MNE-ch 2019"]
[Site "Podgorica"]
[Date "2019.05.26"]
[Round "9.2"]
[White "Kisic, Bozidar"]
[Black "Blagojevic, Dragisa"]
[Result "1-0"]
[ECO "D45"]
[WhiteElo "2200"]
[BlackElo "2499"]
[Annotator "RC"]
[PlyCount "93"]
[EventDate "2019.05.18"]
[EventType "swiss"]
[EventCountry "MNE"]
[SourceTitle "playchess.com"]
[Source "ChessBase"]
[SourceQuality "1"]
[TimeControl "40/5400+30:1800+30"]

1. d4 {[%emt 0:01:46]} d5 {[%emt 0:00:00]} 2. c4 {[%emt 0:00:31]} e6 {[%emt 0:00:00]} 3. Nc3 {[%emt 0:00:28]} c6 {[%emt 0:00:01]} 4. e3 {[%emt 0:00:23]} Nf6 {[%emt 0:00:11]} 5. Nf3 {[%emt 0:00:34]} Nbd7 {[%emt 0:00:07]} 6. Qc2 {[%emt 0:00:37]} Bd6 {[%emt 0:00:07]} 7. Be2 {[%emt 0:00:14]} O-O {[%emt 0:00:55]} 8. O-O {[%emt 0:00:12]} dxc4 {[%emt 0:00:40]} 9. Bxc4 {[%emt 0:00:13]} b5 {[%emt 0:00:08]} 10. Be2 {[%emt 0:00:11]} Bb7 {[%emt 0:00:10]} 11. e4 {[%emt 0:00:12]} e5 {[%emt 0:00:05]} 12. dxe5 {[%emt 0:00:17]} Nxe5 {[%emt 0:00:08]} 13. Nh4 {[%emt 0:00:07]} Bc5 {[%emt 0:28:48]} 14. Bg5 {[%emt 0:07:11]} Qb6 {[%emt 0:07:19]} 15. Bxf6 {[%emt 0:04:22]} gxf6 {[%emt 0:00:07]} 16. Qc1 {[%emt 0:08:21]} Ng6 {[%emt 0:12:36]} 17. Nf5 {[%emt 0:03:57]} Rfe8 {[%emt 0:04:59]} 18. h4 {[%emt 0:16:34]} Rad8 {[%emt 0:05:59]} 19. Nh6+ {[%emt 0:16:55]} Kg7 {[%emt 0:07:26]} 20. h5 {[%emt 0:05:35]} Ne7 {[%emt 0:01:51]} 21. e5 {[%emt 0:05:45]} Bd4 {[%emt 0:22:10]} 22. Ng4 {[%emt 0:07:22]} Ng8 {[%emt 0:02:15]} 23. exf6+ {[%emt 0:03:19]} Bxf6 {[%emt 0:00:35]} 24. Nxf6 {[%emt 0:07:05]} Kxf6 {[%emt 0:00:09]} 25. Qf4+ {[%emt 0:00:24]} Kg7 {[%emt 0:01:14]} 26. h6+ {[%emt 0:00:30]} Kf8 {[%emt 0:00:30]} 27. Bh5 {[%emt 0:00:30]} Re7 {[%emt 0:00:30]} 28. Rad1 {[%emt 0:03:09]} Rxd1 {[%emt 0:02:53]} 29. Rxd1 {[%emt 0:00:43]} c5 {[%emt 0:01:34]} 30. Rd6 {[%emt 0:02:14]} Qc7 {[%emt 0:00:36]} 31. Nxb5 {[%emt 0:01:43]} Qa5 {[%emt 0:00:05]} 32. Nc3 {[%emt 0:01:13]} c4 {[%emt 0:00:20]} 33. Be2 {[%emt 0:01:31]} Qc7 {[%emt 0:01:28]} 34. Qg3 {[%emt 0:00:36]} f5 {[%emt 0:00:24]} 35. Bxc4 {[%emt 0:01:12]} Nxh6 {[%emt 0:00:29]} 36. Rf6+ {[%emt 0:00:46]} Nf7 {[%emt 0:00:12]} 37. Qxc7 {[%emt 0:00:40]} Rxc7 {[%emt 0:00:04]} 38. Rxf7+ {[%emt 0:00:35]} Rxf7 {[%emt 0:00:04]} 39. Bxf7 {[%emt 0:00:03]} Kxf7 {[%emt 0:00:05]} 40. f4 {[%emt 0:00:00]} a5 {[%emt 0:00:00]} 41. g3 {[%emt 0:01:48]} Kg6 {[%emt 0:04:43]} 42. Kf2 {[%emt 0:01:13]} Bc6 {[%emt 0:07:18]} 43. b3 {[%emt 0:00:36]} h6 {[%emt 0:09:55]} 44. a3 {[%emt 0:01:37]} Bb7 {[%emt 0:03:13]} 45. b4 {[%emt 0:01:38]} axb4 {[%emt 0:00:05]} 46. axb4 {[%emt 0:00:04]} Kh5 {[%emt 0:03:58]} 47. b5 {[%emt 0:02:59]} 1-0

[Event "71st MNE-ch 2019"]
[Site "Podgorica"]
[Date "2019.05.26"]
[Round "9.3"]
[White "Lekic, Dusan"]
[Black "Kalezic, Blazo"]
[Result "0-1"]
[ECO "D43"]
[WhiteElo "2352"]
[BlackElo "2450"]
[Annotator "RC"]
[PlyCount "60"]
[EventDate "2019.05.18"]
[EventType "swiss"]
[EventCountry "MNE"]
[SourceTitle "playchess.com"]
[Source "ChessBase"]
[SourceQuality "1"]
[TimeControl "40/5400+30:1800+30"]

1. d4 {[%emt 0:00:00]} d5 {[%emt 0:00:05]} 2. c4 {[%emt 0:00:43]} c6 {[%emt 0:01:10]} 3. Nf3 {[%emt 0:00:51]} Nf6 {[%emt 0:00:39]} 4. Nc3 {[%emt 0:00:07]} e6 {[%emt 0:00:14]} 5. Bg5 {[%emt 0:01:25]} h6 {[%emt 0:01:46]} 6. Bh4 {[%emt 0:00:07]} dxc4 {[%emt 0:00:18]} 7. e4 {[%emt 0:00:48]} g5 {[%emt 0:00:07]} 8. Bg3 {[%emt 0:00:10]} b5 {[%emt 0:00:05]} 9. Be2 {[%emt 0:02:28]} Bb7 {[%emt 0:01:08]} 10. e5 {[%emt 0:02:44]} Nd5 {[%emt 0:05:27]} 11. O-O {[%emt 0:02:37]} Nd7 {[%emt 0:09:24]} 12. Nxd5 {[%emt 0:03:40]} cxd5 {[%emt 0:02:09]} 13. Ne1 {[%emt 0:00:08]} Qb6 {[%emt 0:05:54]} 14. f4 {[%emt 0:05:03]} gxf4 {[%emt 0:05:00]} 15. Bxf4 {[%emt 0:00:37]} O-O-O {[%emt 0:05:18]} 16. a4 {[%emt 0:07:11]} a6 {[%emt 0:03:22]} 17. a5 {[%emt 0:08:26]} Qc7 {[%emt 0:02:08]} 18. Bh5 {[%emt 0:11:40]} Nb8 {[%emt 0:02:12]} 19. Bd2 {[%emt 0:08:29]} Rd7 {[%emt 0:01:31]} 20. b4 {[%emt 0:15:18]} Nc6 {[%emt 0:07:15]} 21. Nc2 {[%emt 0:00:09]} Kb8 {[%emt 0:01:26]} 22. Ra3 {[%emt 0:02:58]} f5 {[%emt 0:08:52]} 23. Rg3 {[%emt 0:13:45]} Rg7 {[%emt 0:03:04]} 24. Rff3 {[%emt 0:04:06]} Rhg8 {[%emt 0:15:09]} 25. Qf1 {[%emt 0:08:05]} Rg5 {[%emt 0:03:45]} 26. Be8 {[%emt 0:00:44]} Nd8 {[%emt 0:00:59]} 27. Bxg5 {[%emt 0:00:33]} hxg5 {[%emt 0:00:11]} 28. h3 {[%emt 0:00:36]} Qh7 {[%emt 0:00:23]} 29. Qe2 {[%emt 0:00:25]} Be7 {[%emt 0:00:49]} 30. Bxb5 {[%emt 0:00:36]} axb5 {[%emt 0:00:09]} 0-1

[Event "71st MNE-ch 2019"]
[Site "Podgorica"]
[Date "2019.05.26"]
[Round "9.4"]
[White "Draskovic, Luka"]
[Black "Kontic, Djordjije"]
[Result "1-0"]
[ECO "A10"]
[WhiteElo "2430"]
[BlackElo "2264"]
[Annotator "NA"]
[PlyCount "83"]
[EventDate "2019.05.18"]
[EventType "swiss"]
[EventCountry "MNE"]
[SourceTitle "playchess.com"]
[Source "ChessBase"]
[SourceQuality "1"]
[TimeControl "40/5400+30:1800+30"]

1. c4 f5 2. Nc3 Nf6 3. d4 Nc6 4. Nf3 g6 5. e3 d6 6. b3 Bg7 7. Be2 O-O 8. O-O a6 9. Bb2 Rb8 10. Rc1 h6 11. d5 Ne5 12. Qd2 g5 13. Nxe5 dxe5 14. f4 e4 15. c5 Kh8 16. Bc4 b5 17. cxb6 cxb6 18. a4 gxf4 19. Rxf4 e5 20. Rff1 Qd6 21. Qe2 Ra8 22. Ra1 Re8 23. Ba3 Qb8 24. d6 f4 25. Nd5 Bg4 26. Qc2 Qb7 27. Qd2 Rad8 28. Nxf6 Bxf6 29. Bd5 Qh7 30. exf4 exf4 31. Qxf4 Bd4+ 32. Kh1 Qg7 33. Rae1 Re5 34. Rxe4 Rf5 35. Qxf5 Bxf5 36. Rxf5 Bc5 37. Bxc5 bxc5 38. h3 Qg3 39. Re6 Kg7 40. Re7+ Kg6 41. Rf3 Qh4 42. Be4+ 1-0

[Event "71st MNE-ch 2019"]
[Site "Podgorica"]
[Date "2019.05.26"]
[Round "9.5"]
[White "Pecurica, Milos"]
[Black "Drasko, Milan"]
[Result "0-1"]
[ECO "A17"]
[WhiteElo "2365"]
[BlackElo "2418"]
[Annotator "NA RC"]
[PlyCount "54"]
[EventDate "2019.05.18"]
[EventType "swiss"]
[EventCountry "MNE"]
[SourceTitle "playchess.com"]
[Source "ChessBase"]
[SourceQuality "1"]
[TimeControl "40/5400+30:1800+30"]

1. c4 {[%emt 0:00:00]} e6 {[%emt 0:00:24]} 2. Nf3 {[%emt 0:00:33]} Nf6 {[%emt 0:00:31]} 3. Nc3 {[%emt 0:00:56]} Bb4 {[%emt 0:01:40]} 4. g4 {[%emt 0:01:23]} d6 {[%emt 0:07:23]} 5. g5 {[%emt 0:03:15]} Nfd7 {[%emt 0:00:14]} 6. Qc2 {[%emt 0:03:30]} Nc6 {[%emt 0:03:47]} 7. Rg1 {[%emt 0:06:46]} Qe7 {[%emt 0:11:36]} 8. a3 {[%emt 0:07:53]} Bxc3 {[%emt 0:00:08]} 9. Qxc3 {[%emt 0:00:07]} e5 {[%emt 0:02:28]} 10. b4 {[%emt 0:07:59]} O-O {[%emt 0:09:12]} 11. Bb2 {[%emt 0:02:38]} Nb6 {[%emt 0:03:29]} 12. Qc2 {[%emt 0:12:16]} Be6 {[%emt 0:03:56]} 13. e3 {[%emt 0:02:49]} f5 {[%emt 0:03:47]} 14. O-O-O {[%emt 0:13:22]} e4 {[%emt 0:04:39]} 15. d4 {[%emt 0:08:26]} exf3 {[%emt 0:08:20]} 16. d5 {[%emt 0:00:21]} Bd7 {[%emt 0:02:35]} 17. dxc6 {[%emt 0:00:10]} Bxc6 {[%emt 0:00:09]} 18. Bd3 {[%emt 0:03:29]} Ba4 {[%emt 0:08:43]} 19. Qd2 {[%emt 0:01:40]} Bxd1 {[%emt 0:00:53]} 20. Qxd1 {[%emt 0:00:03]} Qe6 {[%emt 0:02:12]} 21. g6 {[%emt 0:01:56]} hxg6 {[%emt 0:04:29]} 22. Rg3 {[%emt 0:03:52]} Nxc4 {[%emt 0:01:28]} 23. Qb3 {[%emt 0:00:15]} d5 {[%emt 0:00:26]} 24. Bxc4 {[%emt 0:00:13]} dxc4 {[%emt 0:00:06]} 25. Qc3 {[%emt 0:00:03]} Rf7 {[%emt 0:00:29]} 26. h4 {[%emt 0:00:08]} Rd8 {[%emt 0:01:21]} 27. h5 {[%emt 0:00:29]} Rd3 0-1

[Event "71st MNE-ch 2019"]
[Site "Podgorica"]
[Date "2019.05.26"]
[Round "9.6"]
[White "Nikac, Predrag"]
[Black "Popadic, Dragan"]
[Result "0-1"]
[ECO "A00"]
[WhiteElo "2319"]
[BlackElo "2198"]
[Annotator "NA"]
[PlyCount "114"]
[EventDate "2019.05.18"]
[EventType "swiss"]
[EventCountry "MNE"]
[SourceTitle "playchess.com"]
[Source "ChessBase"]
[SourceQuality "1"]
[TimeControl "40/5400+30:1800+30"]

1. g3 {[%emt 0:01:15]} g6 {[%emt 0:00:00]} 2. Bg2 {[%emt 0:01:06]} Bg7 {[%emt 0:00:08]} 3. d3 {[%emt 0:00:45]} d6 {[%emt 0:01:06]} 4. Nc3 {[%emt 0:02:47]} Nf6 {[%emt 0:02:11]} 5. f4 {[%emt 0:00:53]} O-O {[%emt 0:04:39]} 6. Nf3 {[%emt 0:00:14]} c5 {[%emt 0:03:12]} 7. O-O {[%emt 0:01:40]} Nc6 {[%emt 0:00:44]} 8. h3 {[%emt 0:01:24]} Bd7 {[%emt 0:01:15]} 9. g4 {[%emt 0:01:33]} Rb8 {[%emt 0:02:01]} 10. e4 {[%emt 0:02:23]} b5 {[%emt 0:00:55]} 11. f5 {[%emt 0:07:18]} Ne5 {[%emt 0:04:57]} 12. Nxe5 {[%emt 0:02:38]} dxe5 {[%emt 0:00:27]} 13. Be3 {[%emt 0:03:43]} Rc8 {[%emt 0:02:50]} 14. Qf3 {[%emt 0:08:48]} b4 {[%emt 0:04:34]} 15. Ne2 {[%emt 0:05:54]} a5 {[%emt 0:04:12]} 16. Ng3 {[%emt 0:00:42]} Ne8 {[%emt 0:06:56]} 17. a4 {[%emt 0:10:18]} c4 {[%emt 0:04:25]} 18. Qf2 {[%emt 0:00:14]} Rc6 {[%emt 0:00:52]} 19. Rfd1 {[%emt 0:07:46]} cxd3 {[%emt 0:01:56]} 20. cxd3 {[%emt 0:01:14]} Qc8 {[%emt 0:03:34]} 21. Rdc1 {[%emt 0:01:30]} Rxc1+ {[%emt 0:03:14]} 22. Rxc1 {[%emt 0:00:52]} Qa6 {[%emt 0:00:17]} 23. g5 {[%emt 0:01:54]} f6 {[%emt 0:03:59]} 24. b3 {[%emt 0:04:22]} fxg5 {[%emt 0:04:01]} 25. Bxg5 {[%emt 0:00:42]} e6 {[%emt 0:00:28]} 26. Qe2 {[%emt 0:06:49]} exf5 {[%emt 0:04:02]} 27. exf5 {[%emt 0:00:10]} gxf5 {[%emt 0:00:24]} 28. Be7 {[%emt 0:02:21]} Rf7 {[%emt 0:01:38]} 29. Bd8 {[%emt 0:04:08]} Bh6 {[%emt 0:05:38]} 30. Rc4 {[%emt 0:02:15]} Qg6 {[%emt 0:03:26]} 31. Qxe5 {[%emt 0:11:08]} Rg7 {[%emt 0:01:17]} 32. Bh4 {[%emt 0:01:56]} f4 {[%emt 0:01:57]} 33. Bd5+ {[%emt 0:01:42]} Kh8 {[%emt 0:00:22]} 34. Rxf4 {[%emt 0:00:12]} Bxf4 {[%emt 0:02:52]} 35. Qxf4 {[%emt 0:00:02]} Be6 {[%emt 0:00:30]} 36. Be4 {[%emt 0:02:20]} Qf7 {[%emt 0:00:33]} 37. Qe5 {[%emt 0:00:48]} Bxb3 {[%emt 0:02:36]} 38. Bc6 {[%emt 0:00:18]} Qe6 {[%emt 0:04:14]} 39. Qxe6 {[%emt 0:02:37]} Bxe6 {[%emt 0:00:01]} 40. Bxe8 {[%emt 0:00:00]} Kg8 {[%emt 0:00:00]} 41. Kf2 {[%emt 0:00:46]} b3 {[%emt 0:03:56]} 42. Bf6 {[%emt 0:07:34]} Rb7 {[%emt 0:03:12]} 43. Bb2 {[%emt 0:02:49]} Rc7 {[%emt 0:00:20]} 44. Ke3 {[%emt 0:03:12]} Rc2 {[%emt 0:00:17]} 45. Bd4 {[%emt 0:00:33]} b2 {[%emt 0:00:25]} 46. Bxb2 {[%emt 0:00:22]} Rxb2 {[%emt 0:00:05]} 47. h4 {[%emt 0:01:15]} Rh2 {[%emt 0:04:06]} 48. h5 {[%emt 0:01:12]} Bf7 {[%emt 0:01:34]} 49. Bc6 {[%emt 0:00:19]} Kf8 {[%emt 0:03:15]} 50. Kd4 {[%emt 0:03:54]} Be8 {[%emt 0:03:20]} 51. Be4 {[%emt 0:00:04]} Rh3 {[%emt 0:01:56]} 52. Ne2 {[%emt 0:01:40]} Rxh5 {[%emt 0:01:50]} 53. Nf4 {[%emt 0:00:03]} Rh6 {[%emt 0:01:14]} 54. Ke5 {[%emt 0:03:41]} Bxa4 {[%emt 0:01:01]} 55. d4 {[%emt 0:00:31]} Bd7 {[%emt 0:00:32]} 56. d5 {[%emt 0:00:47]} a4 {[%emt 0:00:56]} 57. d6 {[%emt 0:00:59]} a3 0-1

[Event "71st MNE-ch 2019"]
[Site "Podgorica"]
[Date "2019.05.26"]
[Round "9.7"]
[White "Miletic, Vuk"]
[Black "Musovic, Armin"]
[Result "0-1"]
[ECO "D06"]
[WhiteElo "1954"]
[BlackElo "2297"]
[Annotator "NA"]
[PlyCount "80"]
[EventDate "2019.05.18"]
[EventType "swiss"]
[EventCountry "MNE"]
[SourceTitle "playchess.com"]
[Source "ChessBase"]
[SourceQuality "1"]
[TimeControl "40/5400+30:1800+30"]

1. d4 {[%emt 0:00:00]} d5 {[%emt 0:00:00]} 2. c4 {[%emt 0:00:00]} c5 {[%emt 0:00:00]} 3. cxd5 {[%emt 0:00:00]} Nf6 {[%emt 0:00:21]} 4. Nf3 {[%emt 0:02:33]} cxd4 {[%emt 0:00:44]} 5. Qxd4 {[%emt 0:05:46]} Qxd5 {[%emt 0:00:14]} 6. Nc3 {[%emt 0:03:35]} Qxd4 {[%emt 0:00:38]} 7. Nxd4 {[%emt 0:00:02]} a6 {[%emt 0:00:03]} 8. g3 {[%emt 0:02:46]} e5 {[%emt 0:01:13]} 9. Nb3 {[%emt 0:01:20]} Bb4 {[%emt 0:03:02]} 10. Bd2 {[%emt 0:01:43]} Nc6 {[%emt 0:01:46]} 11. Bg2 {[%emt 0:05:39]} Be6 {[%emt 0:01:40]} 12. Ne4 {[%emt 0:13:32]} O-O-O {[%emt 0:06:11]} 13. Rc1 {[%emt 0:14:45]} Kb8 {[%emt 0:05:26]} 14. Nec5 {[%emt 0:06:48]} Rxd2 {[%emt 0:07:45]} 15. Nxd2 {[%emt 0:03:14]} Rd8 {[%emt 0:00:31]} 16. Nxe6 {[%emt 0:09:35]} Bxd2+ {[%emt 0:01:17]} 17. Kf1 {[%emt 0:04:58]} Bxc1 {[%emt 0:02:48]} 18. Nxd8 {[%emt 0:00:07]} Nxd8 {[%emt 0:00:07]} 19. b3 {[%emt 0:00:28]} Nc6 {[%emt 0:03:39]} 20. Bxc6 {[%emt 0:00:24]} bxc6 {[%emt 0:00:04]} 21. Kg2 {[%emt 0:00:01]} Ba3 {[%emt 0:00:23]} 22. Rd1 {[%emt 0:01:24]} Kc7 {[%emt 0:00:36]} 23. Rd2 {[%emt 0:01:52]} Nd5 {[%emt 0:01:11]} 24. Rc2 {[%emt 0:00:27]} a5 {[%emt 0:01:58]} 25. Rc4 {[%emt 0:01:21]} Bd6 {[%emt 0:03:14]} 26. Kf3 {[%emt 0:02:07]} Nb4 {[%emt 0:03:50]} 27. a4 {[%emt 0:01:03]} Na6 {[%emt 0:01:05]} 28. Rg4 {[%emt 0:01:18]} g6 {[%emt 0:00:34]} 29. Rh4 {[%emt 0:00:26]} h5 {[%emt 0:00:08]} 30. g4 {[%emt 0:02:22]} Be7 {[%emt 0:05:35]} 31. Rh3 {[%emt 0:00:14]} h4 {[%emt 0:03:00]} 32. Ke4 {[%emt 0:03:23]} Kd6 {[%emt 0:00:58]} 33. Rc3 {[%emt 0:00:58]} Nc5+ {[%emt 0:00:41]} 34. Kf3 {[%emt 0:00:18]} Bf6 {[%emt 0:05:12]} 35. Ke3 {[%emt 0:03:04]} Bg5+ {[%emt 0:01:30]} 36. Kf3 {[%emt 0:00:14]} e4+ {[%emt 0:00:31]} 37. Kg2 {[%emt 0:00:04]} Bf6 {[%emt 0:00:24]} 38. Rc4 {[%emt 0:00:16]} Kd5 {[%emt 0:01:29]} 39. f3 {[%emt 0:01:21]} exf3+ {[%emt 0:00:59]} 40. exf3 {[%emt 0:00:00]} Bd4 {[%emt 0:00:00]} 0-1

[Event "71st MNE-ch 2019"]
[Site "Podgorica"]
[Date "2019.05.26"]
[Round "9.8"]
[White "Vujacic, Igor"]
[Black "Pobor, Milo"]
[Result "1/2-1/2"]
[ECO "B66"]
[WhiteElo "2205"]
[BlackElo "1960"]
[Annotator "NA RC"]
[PlyCount "131"]
[EventDate "2019.05.18"]
[EventType "swiss"]
[EventCountry "MNE"]
[SourceTitle "playchess.com"]
[Source "ChessBase"]
[SourceQuality "1"]
[TimeControl "40/5400+30:1800+30"]

1. e4 {[%emt 0:08:34]} c5 {[%emt 0:00:45]} 2. Nf3 {[%emt 0:00:13]} Nc6 {[%emt 0:00:10]} 3. d4 {[%emt 0:00:28]} cxd4 {[%emt 0:00:07]} 4. Nxd4 {[%emt 0:00:06]} Nf6 {[%emt 0:00:12]} 5. Nc3 {[%emt 0:00:07]} d6 {[%emt 0:00:35]} 6. Bg5 {[%emt 0:00:20]} e6 {[%emt 0:00:10]} 7. Qd2 {[%emt 0:00:11]} a6 {[%emt 0:00:12]} 8. O-O-O {[%emt 0:00:25]} h6 {[%emt 0:00:06]} 9. Bf4 {[%emt 0:00:35]} Bd7 {[%emt 0:00:26]} 10. Nxc6 {[%emt 0:00:17]} Bxc6 {[%emt 0:00:06]} 11. f3 {[%emt 0:00:20]} d5 {[%emt 0:06:54]} 12. Qe1 {[%emt 0:00:15]} Bb4 {[%emt 0:01:54]} 13. a3 {[%emt 0:00:40]} Bxc3 {[%emt 0:01:19]} 14. Qxc3 {[%emt 0:00:33]} O-O {[%emt 0:00:50]} 15. Be5 {[%emt 0:00:36]} Rc8 {[%emt 0:03:32]} 16. Bxf6 {[%emt 0:04:26]} Qxf6 {[%emt 0:00:53]} 17. Qxf6 {[%emt 0:00:21]} gxf6 {[%emt 0:00:02]} 18. exd5 {[%emt 0:00:54]} Bxd5 {[%emt 0:00:06]} 19. Rd4 {[%emt 0:01:20]} Rfd8 {[%emt 0:06:23]} 20. Be2 {[%emt 0:03:22]} Rc5 {[%emt 0:12:16]} 21. Rhd1 {[%emt 0:09:08]} Rdc8 {[%emt 0:00:23]} 22. R1d2 {[%emt 0:06:33]} f5 {[%emt 0:16:41]} 23. Kb1 {[%emt 0:09:13]} Kg7 {[%emt 0:07:17]} 24. b3 {[%emt 0:07:59]} b5 {[%emt 0:03:44]} 25. a4 {[%emt 0:03:01]} Bc6 {[%emt 0:04:26]} 26. axb5 {[%emt 0:04:35]} axb5 {[%emt 0:04:16]} 27. Kb2 {[%emt 0:04:48]} Kf6 {[%emt 0:06:53]} 28. Rd8 {[%emt 0:08:02]} Rxd8 {[%emt 0:04:38]} 29. Rxd8 {[%emt 0:00:16]} f4 {[%emt 0:00:05]} 30. Rc8 {[%emt 0:06:04]} Re5 {[%emt 0:01:09]} 31. Bd3 {[%emt 0:00:41]} Bd7 {[%emt 0:00:34]} 32. Rg8 {[%emt 0:04:26]} Rh5 {[%emt 0:03:06]} 33. c4 {[%emt 0:13:10]} bxc4 {[%emt 0:01:26]} 34. Bxc4 {[%emt 0:00:34]} Rxh2 {[%emt 0:01:37]} 35. b4 {[%emt 0:00:16]} Rh5 {[%emt 0:00:11]} 36. Kc3 {[%emt 0:00:23]} Rg5 {[%emt 0:08:34]} 37. Rxg5 {[%emt 0:00:53]} Kxg5 {[%emt 0:00:00]} 38. Kd3 {[%emt 0:01:18]} Kh4 {[%emt 0:00:10]} 39. Ke2 {[%emt 0:00:00]} Kg5 {[%emt 0:00:34]} 40. b5 {[%emt 0:00:00]} Bc8 {[%emt 0:00:00]} 41. Kd3 {[%emt 0:11:22]} h5 {[%emt 0:03:58]} 42. Ke4 {[%emt 0:12:14]} Bb7+ {[%emt 0:10:35]} 43. Ke5 {[%emt 0:00:35]} h4 {[%emt 0:00:11]} 44. Be2 {[%emt 0:07:46]} Bd5 {[%emt 0:01:28]} 45. b6 {[%emt 0:00:39]} Bb7 {[%emt 0:00:44]} 46. Bd3 {[%emt 0:01:27]} h3 {[%emt 0:01:05]} 47. gxh3 {[%emt 0:00:21]} f6+ {[%emt 0:00:09]} 48. Kxe6 {[%emt 0:01:53]} Bxf3 {[%emt 0:00:06]} 49. Bf1 {[%emt 0:00:56]} Be4 {[%emt 0:03:59]} 50. Kd6 {[%emt 0:01:47]} f3 {[%emt 0:02:51]} 51. Ke6 {[%emt 0:00:31]} f2 {[%emt 0:01:16]} 52. Kd6 {[%emt 0:00:19]} Kh4 {[%emt 0:01:11]} 53. Ke6 {[%emt 0:00:36]} Kg3 {[%emt 0:00:13]} 54. Kxf6 {[%emt 0:00:12]} Bg2 {[%emt 0:00:11]} 55. h4 {[%emt 0:00:33]} Bxf1 {[%emt 0:00:49]} 56. b7 {[%emt 0:00:05]} Be2 {[%emt 0:00:47]} 57. b8=Q+ {[%emt 0:00:07]} Kg2 {[%emt 0:00:41]} 58. Qb7+ {[%emt 0:00:59]} Bf3 {[%emt 0:00:41]} 59. Qb2 {[%emt 0:00:16]} Kg1 {[%emt 0:00:32]} 60. Qd4 {[%emt 0:00:12]} Kg2 {[%emt 0:00:07]} 61. Qd2 {[%emt 0:00:28]} Kg1 {[%emt 0:01:20]} 62. Qe3 {[%emt 0:00:19]} Kg2 {[%emt 0:00:20]} 63. Qg5+ {[%emt 0:00:23]} Kh1 {[%emt 0:01:21]} 64. Qc1+ {[%emt 0:00:40]} Kg2 {[%emt 0:00:25]} 65. Qc2 {[%emt 0:00:58]} Kg1 {[%emt 0:00:33]} 66. Qxf2+ {[%emt 0:00:31]} 1/2-1/2

[Event "71st MNE-ch 2019"]
[Site "Podgorica"]
[Date "2019.05.26"]
[Round "9.10"]
[White "Vujovic, Savo"]
[Black "Djurovic, Peko"]
[Result "0-1"]
[ECO "A28"]
[WhiteElo "1940"]
[BlackElo "1898"]
[Annotator "NA"]
[PlyCount "36"]
[EventDate "2019.05.18"]
[EventType "swiss"]
[EventCountry "MNE"]
[SourceTitle "playchess.com"]
[Source "ChessBase"]
[SourceQuality "1"]
[TimeControl "40/5400+30:1800+30"]

1. c4 {[%emt 0:00:00]} e5 {[%emt 0:00:34]} 2. Nc3 {[%emt 0:00:05]} Nf6 {[%emt 0:00:09]} 3. Nf3 {[%emt 0:00:06]} Nc6 {[%emt 0:00:22]} 4. e4 {[%emt 0:00:12]} Bc5 {[%emt 0:05:44]} 5. Nxe5 {[%emt 0:00:07]} Nxe5 {[%emt 0:01:04]} 6. d4 {[%emt 0:00:06]} Bb4 {[%emt 0:02:57]} 7. dxe5 {[%emt 0:00:09]} Nxe4 {[%emt 0:02:40]} 8. Qf3 {[%emt 0:02:59]} f5 {[%emt 0:25:57]} 9. Qxf5 {[%emt 0:45:52]} Nxc3 {[%emt 0:04:53]} 10. a3 {[%emt 0:01:20]} d5 {[%emt 0:11:07]} 11. e6 {[%emt 0:05:16]} Rf8 {[%emt 0:01:39]} 12. Qxh7 {[%emt 0:06:49]} Qf6 {[%emt 0:02:38]} 13. Qc2 {[%emt 0:06:17]} Bc5 {[%emt 0:13:08]} 14. bxc3 {[%emt 0:02:38]} Bxf2+ {[%emt 0:00:10]} 15. Kd1 {[%emt 0:00:09]} Bxe6 {[%emt 0:00:10]} 16. cxd5 {[%emt 0:07:37]} O-O-O {[%emt 0:00:57]} 17. Bd2 {[%emt 0:00:26]} Rxd5 {[%emt 0:03:05]} 18. Bd3 {[%emt 0:02:54]} Rfd8 {[%emt 0:00:26]} 0-1

[Event "71st MNE-ch 2019"]
[Site "Podgorica"]
[Date "2019.05.26"]
[Round "9.11"]
[White "Koljevic, Nikolina"]
[Black "Sukovic, Andrej"]
[Result "1/2-1/2"]
[ECO "B53"]
[WhiteElo "1964"]
[BlackElo "2221"]
[Annotator "NA"]
[PlyCount "69"]
[EventDate "2019.05.18"]
[EventType "swiss"]
[EventCountry "MNE"]
[SourceTitle "playchess.com"]
[Source "ChessBase"]
[SourceQuality "1"]
[TimeControl "40/5400+30:1800+30"]

1. e4 {[%emt 0:00:00]} c5 {[%emt 0:00:05]} 2. Nf3 {[%emt 0:00:00]} d6 {[%emt 0:00:04]} 3. d4 {[%emt 0:00:00]} cxd4 {[%emt 0:00:06]} 4. Qxd4 {[%emt 0:00:00]} e5 {[%emt 0:00:04]} 5. Bb5+ {[%emt 0:00:29]} Nd7 {[%emt 0:00:05]} 6. Qd3 {[%emt 0:00:28]} h6 {[%emt 0:00:06]} 7. Nc3 {[%emt 0:00:35]} Ngf6 {[%emt 0:00:05]} 8. Be3 {[%emt 0:00:49]} Be7 {[%emt 0:00:05]} 9. h3 {[%emt 0:01:02]} a6 {[%emt 0:00:08]} 10. Bxd7+ {[%emt 0:00:26]} Bxd7 {[%emt 0:00:07]} 11. O-O-O {[%emt 0:01:09]} b5 {[%emt 0:00:13]} 12. a3 {[%emt 0:04:42]} Rb8 {[%emt 0:00:09]} 13. g4 {[%emt 0:06:37]} a5 {[%emt 0:00:07]} 14. g5 {[%emt 0:01:05]} hxg5 {[%emt 0:00:07]} 15. Bxg5 {[%emt 0:00:26]} b4 {[%emt 0:00:13]} 16. axb4 {[%emt 0:00:35]} axb4 {[%emt 0:00:14]} 17. Nb1 {[%emt 0:01:59]} Qa5 {[%emt 0:02:38]} 18. Bxf6 {[%emt 0:05:45]} gxf6 {[%emt 0:00:08]} 19. h4 {[%emt 0:01:40]} Rc8 {[%emt 0:01:03]} 20. Ne1 {[%emt 0:06:07]} Bf8 {[%emt 0:03:11]} 21. Ng2 {[%emt 0:03:54]} Bb5 {[%emt 0:03:10]} 22. Qh3 {[%emt 0:08:58]} Bh6+ {[%emt 0:01:55]} 23. Ne3 {[%emt 0:00:55]} Qc7 {[%emt 0:03:03]} 24. c3 {[%emt 0:00:31]} Bd7 {[%emt 0:07:25]} 25. Qf1 {[%emt 0:03:39]} Qc6 {[%emt 0:05:36]} 26. Qd3 {[%emt 0:01:56]} Bg4 {[%emt 0:00:11]} 27. Rd2 {[%emt 0:05:42]} Bf3 {[%emt 0:00:21]} 28. Rh3 {[%emt 0:00:16]} Bxe4 {[%emt 0:00:27]} 29. Qxd6 {[%emt 0:00:07]} Bxb1 {[%emt 0:02:34]} 30. Qxc6+ {[%emt 0:01:53]} Rxc6 {[%emt 0:00:09]} 31. Kxb1 {[%emt 0:00:05]} bxc3 {[%emt 0:00:10]} 32. Rc2 {[%emt 0:00:12]} Bxe3 {[%emt 0:06:36]} 33. fxe3 {[%emt 0:00:18]} Rg8 {[%emt 0:04:44]} 34. Rxc3 {[%emt 0:03:26]} Rg1+ {[%emt 0:03:00]} 35. Ka2 {[%emt 0:01:49]} 1/2-1/2

[Event "71st MNE-ch 2019"]
[Site "Podgorica"]
[Date "2019.05.26"]
[Round "9.12"]
[White "Abramovic, Dragoljub"]
[Black "Bacic, Kristina"]
[Result "0-1"]
[ECO "D03"]
[WhiteElo "2063"]
[BlackElo "1819"]
[Annotator "NA"]
[PlyCount "22"]
[EventDate "2019.05.18"]
[EventType "swiss"]
[EventCountry "MNE"]
[SourceTitle "playchess.com"]
[Source "ChessBase"]
[SourceQuality "1"]
[TimeControl "40/5400+30:1800+30"]

1. d4 {[%emt 0:00:00]} d5 {[%emt 0:01:50]} 2. Nf3 {[%emt 0:00:00]} Nf6 {[%emt 0:00:17]} 3. Bg5 {[%emt 0:00:15]} Ne4 {[%emt 0:00:40]} 4. Bh4 {[%emt 0:00:10]} c5 {[%emt 0:03:07]} 5. e3 {[%emt 0:00:06]} Qb6 {[%emt 0:01:25]} 6. Qc1 {[%emt 0:00:11]} f6 {[%emt 0:05:58]} 7. Nbd2 {[%emt 0:01:06]} Nxd2 {[%emt 0:02:24]} 8. Kxd2 {[%emt 0:01:03]} g5 {[%emt 0:01:14]} 9. Bg3 {[%emt 0:00:07]} g4 {[%emt 0:01:11]} 10. Nh4 {[%emt 0:02:52]} cxd4 {[%emt 0:00:23]} 11. exd4 {[%emt 0:00:49]} Bh6+ {[%emt 0:00:30]} 0-1